{"text_format":"1","workbook":"xlsx","n_sheets":2,"sheets":["Баланс","Служебный"],"not_rendered":{"charts":0,"images":0,"macros":1,"external_links":0,"defined_names":0,"comments":1,"pivot_tables":0},"unopened":[],"bounds":{"document_bytes":16777216,"sheet_cells":100000,"rows_first":2000,"rows_last":500,"rows_between":2000,"halvings":0,"cell_chars":16384,"cell_head_chars":4096},"cells_cut":0,"cells_raw":0,"read":"whole","date_system":"1900"}

{"sheet":"Баланс","index":0,"n_rows":64,"n_cols":12,"rows_kept":64,"cut":false,"hidden":false,"merged":[]}
["вид работ","Клиент","Система","Вес"]
["допродажа","Лютик","Проф лок",1,null,null,null,null,null,null,null,{"$f":"IF(ISNA(VLOOKUP(C2,Служебный!$B$2:$C$4,2,0)),\"\",VLOOKUP(C2,Служебный!$B$2:$C$4,2,0)*IF(A2=\"отключение\",-1,1))","v":1}]
["восстановление","Василек","КБ лок",0.6,null,null,null,null,null,null,null,{"$f":"IF(ISNA(VLOOKUP(C3,Служебный!$B$2:$C$4,2,0)),\"\",VLOOKUP(C3,Служебный!$B$2:$C$4,2,0)*IF(A3=\"отключение\",-1,1))","v":0.6}]
["отключение","Лютик","и т.д",-3,null,null,null,null,null,null,null,{"$f":"IF(ISNA(VLOOKUP(C4,Служебный!$B$2:$C$4,2,0)),\"\",VLOOKUP(C4,Служебный!$B$2:$C$4,2,0)*IF(A4=\"отключение\",-1,1))","v":-3}]
[null,null,null,null,null,null,null,null,null,null,null,{"$f":"IF(ISNA(VLOOKUP(C5,Служебный!$B$2:$C$4,2,0)),\"\",VLOOKUP(C5,Служебный!$B$2:$C$4,2,0)*IF(A5=\"отключение\",-1,1))","v":""}]
[null,null,null,null,null,null,null,null,null,null,null,{"$f":"IF(ISNA(VLOOKUP(C6,Служебный!$B$2:$C$4,2,0)),\"\",VLOOKUP(C6,Служебный!$B$2:$C$4,2,0)*IF(A6=\"отключение\",-1,1))","v":""}]
[null,null,null,null,null,null,null,null,null,null,null,{"$f":"IF(ISNA(VLOOKUP(C7,Служебный!$B$2:$C$4,2,0)),\"\",VLOOKUP(C7,Служебный!$B$2:$C$4,2,0)*IF(A7=\"отключение\",-1,1))","v":""}]
[null,null,null,null,null,null,null,null,null,null,null,{"$f":"IF(ISNA(VLOOKUP(C8,Служебный!$B$2:$C$4,2,0)),\"\",VLOOKUP(C8,Служебный!$B$2:$C$4,2,0)*IF(A8=\"отключение\",-1,1))","v":""}]
[null,null,null,null,null,null,null,null,null,null,null,{"$f":"IF(ISNA(VLOOKUP(C9,Служебный!$B$2:$C$4,2,0)),\"\",VLOOKUP(C9,Служебный!$B$2:$C$4,2,0)*IF(A9=\"отключение\",-1,1))","v":""}]
[null,null,null,null,null,null,null,null,null,null,null,{"$f":"IF(ISNA(VLOOKUP(C10,Служебный!$B$2:$C$4,2,0)),\"\",VLOOKUP(C10,Служебный!$B$2:$C$4,2,0)*IF(A10=\"отключение\",-1,1))","v":""}]
[null,null,null,null,null,null,null,null,null,null,null,{"$f":"IF(ISNA(VLOOKUP(C11,Служебный!$B$2:$C$4,2,0)),\"\",VLOOKUP(C11,Служебный!$B$2:$C$4,2,0)*IF(A11=\"отключение\",-1,1))","v":""}]
[null,null,null,null,null,null,null,null,null,null,null,{"$f":"IF(ISNA(VLOOKUP(C12,Служебный!$B$2:$C$4,2,0)),\"\",VLOOKUP(C12,Служебный!$B$2:$C$4,2,0)*IF(A12=\"отключение\",-1,1))","v":""}]
[null,null,null,null,null,null,null,null,null,null,null,{"$f":"IF(ISNA(VLOOKUP(C13,Служебный!$B$2:$C$4,2,0)),\"\",VLOOKUP(C13,Служебный!$B$2:$C$4,2,0)*IF(A13=\"отключение\",-1,1))","v":""}]
[null,null,null,null,null,null,null,null,null,null,null,{"$f":"IF(ISNA(VLOOKUP(C14,Служебный!$B$2:$C$4,2,0)),\"\",VLOOKUP(C14,Служебный!$B$2:$C$4,2,0)*IF(A14=\"отключение\",-1,1))","v":""}]
[null,null,null,null,null,null,null,null,null,null,null,{"$f":"IF(ISNA(VLOOKUP(C15,Служебный!$B$2:$C$4,2,0)),\"\",VLOOKUP(C15,Служебный!$B$2:$C$4,2,0)*IF(A15=\"отключение\",-1,1))","v":""}]
[null,null,null,null,null,null,null,null,null,null,null,{"$f":"IF(ISNA(VLOOKUP(C16,Служебный!$B$2:$C$4,2,0)),\"\",VLOOKUP(C16,Служебный!$B$2:$C$4,2,0)*IF(A16=\"отключение\",-1,1))","v":""}]
[null,null,null,null,null,null,null,null,null,null,null,{"$f":"IF(ISNA(VLOOKUP(C17,Служебный!$B$2:$C$4,2,0)),\"\",VLOOKUP(C17,Служебный!$B$2:$C$4,2,0)*IF(A17=\"отключение\",-1,1))","v":""}]
[null,null,null,null,null,null,null,null,null,null,null,{"$f":"IF(ISNA(VLOOKUP(C18,Служебный!$B$2:$C$4,2,0)),\"\",VLOOKUP(C18,Служебный!$B$2:$C$4,2,0)*IF(A18=\"отключение\",-1,1))","v":""}]
[null,null,null,null,null,null,null,null,null,null,null,{"$f":"IF(ISNA(VLOOKUP(C19,Служебный!$B$2:$C$4,2,0)),\"\",VLOOKUP(C19,Служебный!$B$2:$C$4,2,0)*IF(A19=\"отключение\",-1,1))","v":""}]
[null,null,null,null,null,null,null,null,null,null,null,{"$f":"IF(ISNA(VLOOKUP(C20,Служебный!$B$2:$C$4,2,0)),\"\",VLOOKUP(C20,Служебный!$B$2:$C$4,2,0)*IF(A20=\"отключение\",-1,1))","v":""}]
[null,null,null,null,null,null,null,null,null,null,null,{"$f":"IF(ISNA(VLOOKUP(C21,Служебный!$B$2:$C$4,2,0)),\"\",VLOOKUP(C21,Служебный!$B$2:$C$4,2,0)*IF(A21=\"отключение\",-1,1))","v":""}]
[null,null,null,null,null,null,null,null,null,null,null,{"$f":"IF(ISNA(VLOOKUP(C22,Служебный!$B$2:$C$4,2,0)),\"\",VLOOKUP(C22,Служебный!$B$2:$C$4,2,0)*IF(A22=\"отключение\",-1,1))","v":""}]
[null,null,null,null,null,null,null,null,null,null,null,{"$f":"IF(ISNA(VLOOKUP(C23,Служебный!$B$2:$C$4,2,0)),\"\",VLOOKUP(C23,Служебный!$B$2:$C$4,2,0)*IF(A23=\"отключение\",-1,1))","v":""}]
[null,null,null,null,null,null,null,null,null,null,null,{"$f":"IF(ISNA(VLOOKUP(C24,Служебный!$B$2:$C$4,2,0)),\"\",VLOOKUP(C24,Служебный!$B$2:$C$4,2,0)*IF(A24=\"отключение\",-1,1))","v":""}]
[null,null,null,null,null,null,null,null,null,null,null,{"$f":"IF(ISNA(VLOOKUP(C25,Служебный!$B$2:$C$4,2,0)),\"\",VLOOKUP(C25,Служебный!$B$2:$C$4,2,0)*IF(A25=\"отключение\",-1,1))","v":""}]
[null,null,null,null,null,null,null,null,null,null,null,{"$f":"IF(ISNA(VLOOKUP(C26,Служебный!$B$2:$C$4,2,0)),\"\",VLOOKUP(C26,Служебный!$B$2:$C$4,2,0)*IF(A26=\"отключение\",-1,1))","v":""}]
[null,null,null,null,null,null,null,null,null,null,null,{"$f":"IF(ISNA(VLOOKUP(C27,Служебный!$B$2:$C$4,2,0)),\"\",VLOOKUP(C27,Служебный!$B$2:$C$4,2,0)*IF(A27=\"отключение\",-1,1))","v":""}]
[null,null,null,null,null,null,null,null,null,null,null,{"$f":"IF(ISNA(VLOOKUP(C28,Служебный!$B$2:$C$4,2,0)),\"\",VLOOKUP(C28,Служебный!$B$2:$C$4,2,0)*IF(A28=\"отключение\",-1,1))","v":""}]
[null,null,null,null,null,null,null,null,null,null,null,{"$f":"IF(ISNA(VLOOKUP(C29,Служебный!$B$2:$C$4,2,0)),\"\",VLOOKUP(C29,Служебный!$B$2:$C$4,2,0)*IF(A29=\"отключение\",-1,1))","v":""}]
[null,null,null,null,null,null,null,null,null,null,null,{"$f":"IF(ISNA(VLOOKUP(C30,Служебный!$B$2:$C$4,2,0)),\"\",VLOOKUP(C30,Служебный!$B$2:$C$4,2,0)*IF(A30=\"отключение\",-1,1))","v":""}]
[null,null,null,null,null,null,null,null,null,null,null,{"$f":"IF(ISNA(VLOOKUP(C31,Служебный!$B$2:$C$4,2,0)),\"\",VLOOKUP(C31,Служебный!$B$2:$C$4,2,0)*IF(A31=\"отключение\",-1,1))","v":""}]
[null,null,null,null,null,null,null,null,null,null,null,{"$f":"IF(ISNA(VLOOKUP(C32,Служебный!$B$2:$C$4,2,0)),\"\",VLOOKUP(C32,Служебный!$B$2:$C$4,2,0)*IF(A32=\"отключение\",-1,1))","v":""}]
[null,null,null,null,null,null,null,null,null,null,null,{"$f":"IF(ISNA(VLOOKUP(C33,Служебный!$B$2:$C$4,2,0)),\"\",VLOOKUP(C33,Служебный!$B$2:$C$4,2,0)*IF(A33=\"отключение\",-1,1))","v":""}]
[null,null,null,null,null,null,null,null,null,null,null,{"$f":"IF(ISNA(VLOOKUP(C34,Служебный!$B$2:$C$4,2,0)),\"\",VLOOKUP(C34,Служебный!$B$2:$C$4,2,0)*IF(A34=\"отключение\",-1,1))","v":""}]
[null,null,null,null,null,null,null,null,null,null,null,{"$f":"IF(ISNA(VLOOKUP(C35,Служебный!$B$2:$C$4,2,0)),\"\",VLOOKUP(C35,Служебный!$B$2:$C$4,2,0)*IF(A35=\"отключение\",-1,1))","v":""}]
[null,null,null,null,null,null,null,null,null,null,null,{"$f":"IF(ISNA(VLOOKUP(C36,Служебный!$B$2:$C$4,2,0)),\"\",VLOOKUP(C36,Служебный!$B$2:$C$4,2,0)*IF(A36=\"отключение\",-1,1))","v":""}]
[null,null,null,null,null,null,null,null,null,null,null,{"$f":"IF(ISNA(VLOOKUP(C37,Служебный!$B$2:$C$4,2,0)),\"\",VLOOKUP(C37,Служебный!$B$2:$C$4,2,0)*IF(A37=\"отключение\",-1,1))","v":""}]
[null,null,null,null,null,null,null,null,null,null,null,{"$f":"IF(ISNA(VLOOKUP(C38,Служебный!$B$2:$C$4,2,0)),\"\",VLOOKUP(C38,Служебный!$B$2:$C$4,2,0)*IF(A38=\"отключение\",-1,1))","v":""}]
[null,null,null,null,null,null,null,null,null,null,null,{"$f":"IF(ISNA(VLOOKUP(C39,Служебный!$B$2:$C$4,2,0)),\"\",VLOOKUP(C39,Служебный!$B$2:$C$4,2,0)*IF(A39=\"отключение\",-1,1))","v":""}]
[null,null,null,null,null,null,null,null,null,null,null,{"$f":"IF(ISNA(VLOOKUP(C40,Служебный!$B$2:$C$4,2,0)),\"\",VLOOKUP(C40,Служебный!$B$2:$C$4,2,0)*IF(A40=\"отключение\",-1,1))","v":""}]
[null,null,null,null,null,null,null,null,null,null,null,{"$f":"IF(ISNA(VLOOKUP(C41,Служебный!$B$2:$C$4,2,0)),\"\",VLOOKUP(C41,Служебный!$B$2:$C$4,2,0)*IF(A41=\"отключение\",-1,1))","v":""}]
[null,null,null,null,null,null,null,null,null,null,null,{"$f":"IF(ISNA(VLOOKUP(C42,Служебный!$B$2:$C$4,2,0)),\"\",VLOOKUP(C42,Служебный!$B$2:$C$4,2,0)*IF(A42=\"отключение\",-1,1))","v":""}]
[null,null,null,null,null,null,null,null,null,null,null,{"$f":"IF(ISNA(VLOOKUP(C43,Служебный!$B$2:$C$4,2,0)),\"\",VLOOKUP(C43,Служебный!$B$2:$C$4,2,0)*IF(A43=\"отключение\",-1,1))","v":""}]
[null,null,null,null,null,null,null,null,null,null,null,{"$f":"IF(ISNA(VLOOKUP(C44,Служебный!$B$2:$C$4,2,0)),\"\",VLOOKUP(C44,Служебный!$B$2:$C$4,2,0)*IF(A44=\"отключение\",-1,1))","v":""}]
[null,null,null,null,null,null,null,null,null,null,null,{"$f":"IF(ISNA(VLOOKUP(C45,Служебный!$B$2:$C$4,2,0)),\"\",VLOOKUP(C45,Служебный!$B$2:$C$4,2,0)*IF(A45=\"отключение\",-1,1))","v":""}]
[null,null,null,null,null,null,null,null,null,null,null,{"$f":"IF(ISNA(VLOOKUP(C46,Служебный!$B$2:$C$4,2,0)),\"\",VLOOKUP(C46,Служебный!$B$2:$C$4,2,0)*IF(A46=\"отключение\",-1,1))","v":""}]
[null,null,null,null,null,null,null,null,null,null,null,{"$f":"IF(ISNA(VLOOKUP(C47,Служебный!$B$2:$C$4,2,0)),\"\",VLOOKUP(C47,Служебный!$B$2:$C$4,2,0)*IF(A47=\"отключение\",-1,1))","v":""}]
[null,null,null,null,null,null,null,null,null,null,null,{"$f":"IF(ISNA(VLOOKUP(C48,Служебный!$B$2:$C$4,2,0)),\"\",VLOOKUP(C48,Служебный!$B$2:$C$4,2,0)*IF(A48=\"отключение\",-1,1))","v":""}]
[null,null,null,null,null,null,null,null,null,null,null,{"$f":"IF(ISNA(VLOOKUP(C49,Служебный!$B$2:$C$4,2,0)),\"\",VLOOKUP(C49,Служебный!$B$2:$C$4,2,0)*IF(A49=\"отключение\",-1,1))","v":""}]
[null,null,null,null,null,null,null,null,null,null,null,{"$f":"IF(ISNA(VLOOKUP(C50,Служебный!$B$2:$C$4,2,0)),\"\",VLOOKUP(C50,Служебный!$B$2:$C$4,2,0)*IF(A50=\"отключение\",-1,1))","v":""}]
[null,null,null,null,null,null,null,null,null,null,null,{"$f":"IF(ISNA(VLOOKUP(C51,Служебный!$B$2:$C$4,2,0)),\"\",VLOOKUP(C51,Служебный!$B$2:$C$4,2,0)*IF(A51=\"отключение\",-1,1))","v":""}]
[null,null,null,null,null,null,null,null,null,null,null,{"$f":"IF(ISNA(VLOOKUP(C52,Служебный!$B$2:$C$4,2,0)),\"\",VLOOKUP(C52,Служебный!$B$2:$C$4,2,0)*IF(A52=\"отключение\",-1,1))","v":""}]
[null,null,null,null,null,null,null,null,null,null,null,{"$f":"IF(ISNA(VLOOKUP(C53,Служебный!$B$2:$C$4,2,0)),\"\",VLOOKUP(C53,Служебный!$B$2:$C$4,2,0)*IF(A53=\"отключение\",-1,1))","v":""}]
[null,null,null,null,null,null,null,null,null,null,null,{"$f":"IF(ISNA(VLOOKUP(C54,Служебный!$B$2:$C$4,2,0)),\"\",VLOOKUP(C54,Служебный!$B$2:$C$4,2,0)*IF(A54=\"отключение\",-1,1))","v":""}]
[null,null,null,null,null,null,null,null,null,null,null,{"$f":"IF(ISNA(VLOOKUP(C55,Служебный!$B$2:$C$4,2,0)),\"\",VLOOKUP(C55,Служебный!$B$2:$C$4,2,0)*IF(A55=\"отключение\",-1,1))","v":""}]
[null,null,null,null,null,null,null,null,null,null,null,{"$f":"IF(ISNA(VLOOKUP(C56,Служебный!$B$2:$C$4,2,0)),\"\",VLOOKUP(C56,Служебный!$B$2:$C$4,2,0)*IF(A56=\"отключение\",-1,1))","v":""}]
[null,null,null,null,null,null,null,null,null,null,null,{"$f":"IF(ISNA(VLOOKUP(C57,Служебный!$B$2:$C$4,2,0)),\"\",VLOOKUP(C57,Служебный!$B$2:$C$4,2,0)*IF(A57=\"отключение\",-1,1))","v":""}]
[null,null,null,null,null,null,null,null,null,null,null,{"$f":"IF(ISNA(VLOOKUP(C58,Служебный!$B$2:$C$4,2,0)),\"\",VLOOKUP(C58,Служебный!$B$2:$C$4,2,0)*IF(A58=\"отключение\",-1,1))","v":""}]
[null,null,null,null,null,null,null,null,null,null,null,{"$f":"IF(ISNA(VLOOKUP(C59,Служебный!$B$2:$C$4,2,0)),\"\",VLOOKUP(C59,Служебный!$B$2:$C$4,2,0)*IF(A59=\"отключение\",-1,1))","v":""}]
[null,null,null,null,null,null,null,null,null,null,null,{"$f":"IF(ISNA(VLOOKUP(C60,Служебный!$B$2:$C$4,2,0)),\"\",VLOOKUP(C60,Служебный!$B$2:$C$4,2,0)*IF(A60=\"отключение\",-1,1))","v":""}]
[null,null,null,null,null,null,null,null,null,null,null,{"$f":"IF(ISNA(VLOOKUP(C61,Служебный!$B$2:$C$4,2,0)),\"\",VLOOKUP(C61,Служебный!$B$2:$C$4,2,0)*IF(A61=\"отключение\",-1,1))","v":""}]
[null,null,null,null,null,null,null,null,null,null,null,{"$f":"IF(ISNA(VLOOKUP(C62,Служебный!$B$2:$C$4,2,0)),\"\",VLOOKUP(C62,Служебный!$B$2:$C$4,2,0)*IF(A62=\"отключение\",-1,1))","v":""}]
[null,null,null,null,null,null,null,null,null,null,null,{"$f":"IF(ISNA(VLOOKUP(C63,Служебный!$B$2:$C$4,2,0)),\"\",VLOOKUP(C63,Служебный!$B$2:$C$4,2,0)*IF(A63=\"отключение\",-1,1))","v":""}]
[null,null,null,null,null,null,null,null,null,null,null,{"$f":"IF(ISNA(VLOOKUP(C64,Служебный!$B$2:$C$4,2,0)),\"\",VLOOKUP(C64,Служебный!$B$2:$C$4,2,0)*IF(A64=\"отключение\",-1,1))","v":""}]

{"sheet":"Служебный","index":1,"n_rows":4,"n_cols":3,"rows_kept":4,"cut":false,"hidden":false,"merged":[]}
["вид работ","Система","Вес"]
["допродажа","Проф лок",1]
["восстановление","КБ лок",0.6]
["отключение","и т.д",3]